[Event "Live Chess"]
[Site "Chess.com"]
[Date "2021.02.28"]
[Round "-"]
[White "Hogg, Stephen W"]
[Black "McDonald, Ian"]
[Result "1/2-1/2"]
[BlackElo "2019"]
[CurrentPosition "8/2r3k1/6P1/R6K/8/8/8/8 w - -"]
[ECO "A41"]
[ECOUrl "https://www.chess.com/openings/Queens-Pawn-Opening-English-Rat-Defense"]
[EndDate "2021.02.28"]
[EndTime "12:06:42"]
[Link "https://www.chess.com/live/game/8249034351"]
[StartTime "11:00:38"]
[Termination "Game drawn by agreement"]
[TimeControl "1500+10"]
[Timezone "UTC"]
[UTCDate "2021.02.28"]
[UTCTime "11:00:38"]
[WhiteElo "2097"]

1. d4 { [%clk 0:25:10] } 1... d6 { [%clk 0:25:10] } 2. c4 { [%clk 0:25:17.5] } 2... e5 { [%clk 0:25:15.2] } 3. d5 { [%clk 0:25:21] } 3... f5 { [%clk 0:24:23.3] } 4. e4 { [%clk 0:25:26.5] } 4... fxe4 { [%clk 0:22:54] } 5. Nc3 { [%clk 0:25:13.3] } 5... Nf6 { [%clk 0:22:44.5] } 6. Nge2 { [%clk 0:24:53] } 6... Be7 { [%clk 0:21:53.6] } 7. Ng3 { [%clk 0:24:58.2] } 7... O-O { [%clk 0:21:56.9] } 8. Ngxe4 { [%clk 0:24:38.2] } 8... Nxe4 { [%clk 0:19:55.8] } 9. Nxe4 { [%clk 0:24:45.4] } 9... Bf5 { [%clk 0:20:04.7] } 10. Bd3 { [%clk 0:24:23.8] } 10... Qe8 { [%clk 0:20:07] } 11. O-O { [%clk 0:23:00.8] } 11... Qg6 { [%clk 0:20:03.8] } 12. f3 { [%clk 0:22:33.5] } 12... Nd7 { [%clk 0:17:06] } 13. Be3 { [%clk 0:21:51.5] } 13... Nc5 { [%clk 0:15:17.6] } 14. Nxc5 { [%clk 0:21:04.6] } 14... dxc5 { [%clk 0:15:24.5] } 15. Bxf5 { [%clk 0:21:00.1] } 15... Qxf5 { [%clk 0:13:51.3] } 16. Qb1 { [%clk 0:19:15.5] } 16... Qxb1 { [%clk 0:13:08] } 17. Raxb1 { [%clk 0:18:48.1] } 17... a5 { [%clk 0:13:17.9] } 18. Rfe1 { [%clk 0:17:30.9] } 18... Bd6 { [%clk 0:12:12.6] } 19. Bd2 { [%clk 0:17:06.5] } 19... Rae8 { [%clk 0:05:31.4] } 20. Re4 { [%clk 0:16:04.7] } 20... a4 { [%clk 0:05:10.9] } 21. Rbe1 { [%clk 0:15:50.3] } 21... Rf7 { [%clk 0:05:04.3] } 22. f4 { [%clk 0:14:43.6] } 22... Rfe7 { [%clk 0:05:00.3] } 23. f5 { [%clk 0:14:47.1] } 23... Rf7 { [%clk 0:05:00.7] } 24. g4 { [%clk 0:14:20.9] } 24... h5 { [%clk 0:05:08.9] } 25. h3 { [%clk 0:14:05.3] } 25... hxg4 { [%clk 0:05:18.2] } 26. hxg4 { [%clk 0:14:13.4] } 26... g6 { [%clk 0:05:27.9] } 27. fxg6 { [%clk 0:13:42.4] } 27... Rg7 { [%clk 0:05:36.7] } 28. Kg2 { [%clk 0:12:43] } 28... Rxg6 { [%clk 0:05:43.2] } 29. Kg3 { [%clk 0:12:32.5] } 29... Rb8 { [%clk 0:03:19.1] } 30. R1e3 { [%clk 0:08:56.6] } 30... b5 { [%clk 0:03:08.6] } 31. cxb5 { [%clk 0:08:40.4] } 31... Rxb5 { [%clk 0:03:11.9] } 32. Bc3 { [%clk 0:08:33.1] } 32... c4 { [%clk 0:00:56.8] } 33. Bxe5 { [%clk 0:06:29.9] } 33... Rxb2 { [%clk 0:01:05.2] } 34. Rxc4 { [%clk 0:05:55.9] } 34... Rxa2 { [%clk 0:00:33.7] } 35. Bxd6 { [%clk 0:05:32.9] } 35... Rxd6 { [%clk 0:00:30.4] } 36. Rxc7 { [%clk 0:05:25.3] } 36... Kf8 { [%clk 0:00:39.5] } 37. Rd3 { [%clk 0:04:20.7] } 37... Rb2 { [%clk 0:00:26.3] } 38. Kf4 { [%clk 0:03:33.7] } 38... Rb3 { [%clk 0:00:30.9] } 39. Rd4 { [%clk 0:03:10.8] } 39... a3 { [%clk 0:00:19.2] } 40. Ra7 { [%clk 0:02:34.6] } 40... Rd8 { [%clk 0:00:12.5] } 41. d6 { [%clk 0:02:13.6] } 41... Rb6 { [%clk 0:00:15.1] } 42. Ke5 { [%clk 0:01:38.1] } 42... Rb3 { [%clk 0:00:13.3] } 43. g5 { [%clk 0:01:06.6] } 43... Re3+ { [%clk 0:00:19.4] } 44. Kf6 { [%clk 0:00:48.9] } 44... Rf3+ { [%clk 0:00:19] } 45. Kg6 { [%clk 0:00:40.4] } 45... Kg8 { [%clk 0:00:22.3] } 46. d7 { [%clk 0:00:26.8] } 46... Rh3 { [%clk 0:00:18.5] } 47. Rda4 { [%clk 0:00:29.3] } 47... Rd3 { [%clk 0:00:22.3] } 48. Rxa3 { [%clk 0:00:29.2] } 48... Rd6+ { [%clk 0:00:29.3] } 49. Kh5 { [%clk 0:00:32.8] } 49... R6xd7 { [%clk 0:00:36.7] } 50. Rxd7 { [%clk 0:00:34.2] } 50... Rxd7 { [%clk 0:00:46.6] } 51. g6 { [%clk 0:00:42.9] } 51... Kg7 { [%clk 0:00:53.1] } 52. Ra5 { [%clk 0:00:47.3] } 52... Rc7 { [%clk 0:00:59] } 1/2-1/2

[Event "Live Chess"]
[Site "Chess.com"]
[Date "2021.02.28"]
[Round "-"]
[White "Abdulla, Murad"]
[Black "Grove, Michael"]
[Result "1/2-1/2"]
[BlackElo "1840"]
[CurrentPosition "r5r1/1b1k1B2/p2pp3/4b1B1/3Nn2P/2q5/P1P2PQ1/1R2K2R w - -"]
[ECO "B90"]
[ECOUrl "https://www.chess.com/openings/Sicilian-Defense-Open-Najdorf-Adams-Attack"]
[EndDate "2021.02.28"]
[EndTime "14:52:07"]
[Link "https://www.chess.com/live/game/8259925423"]
[StartTime "14:05:35"]
[Termination "Game drawn by agreement"]
[TimeControl "1500+10"]
[Timezone "UTC"]
[UTCDate "2021.02.28"]
[UTCTime "14:05:35"]
[WhiteElo "1988"]

1. e4 { [%clk 0:25:10] } 1... c5 { [%clk 0:25:10] } 2. Nf3 { [%clk 0:24:52.9] } 2... d6 { [%clk 0:25:15.2] } 3. d4 { [%clk 0:25:00.5] } 3... cxd4 { [%clk 0:25:22.6] } 4. Nxd4 { [%clk 0:25:05.1] } 4... Nf6 { [%clk 0:25:31.1] } 5. Nc3 { [%clk 0:25:07.6] } 5... a6 { [%clk 0:24:36.1] } 6. h3 { [%clk 0:25:12.6] } 6... e6 { [%clk 0:24:30.7] } 7. g4 { [%clk 0:25:20.8] } 7... b5 { [%clk 0:24:26.9] } 8. g5 { [%clk 0:25:20.9] } 8... b4 { [%clk 0:24:35.4] } 9. gxf6 { [%clk 0:25:30.1] } 9... bxc3 { [%clk 0:24:43.5] } 10. fxg7 { [%clk 0:25:36.6] } 10... Bxg7 { [%clk 0:24:52.1] } 11. bxc3 { [%clk 0:25:40.3] } 11... Nd7 { [%clk 0:24:47.9] } 12. Qg4 { [%clk 0:24:45.1] } 12... Bf6 { [%clk 0:20:39.7] } 13. Be2 { [%clk 0:21:11.1] } 13... Bb7 { [%clk 0:18:17.7] } 14. Rb1 { [%clk 0:21:10.8] } 14... Nc5 { [%clk 0:17:46.9] } 15. Bf3 { [%clk 0:19:28] } 15... h5 { [%clk 0:16:27.2] } 16. Qg2 { [%clk 0:19:16.2] } 16... Be5 { [%clk 0:13:21.4] } 17. Bd2 { [%clk 0:16:21.9] } 17... Qc7 { [%clk 0:12:51.1] } 18. Bg5 { [%clk 0:12:02.1] } 18... Kd7 { [%clk 0:12:33.7] } 19. h4 { [%clk 0:09:40.9] } 19... Rhg8 { [%clk 0:12:14.5] } 20. Bxh5 { [%clk 0:08:45.6] } 20... Nxe4 { [%clk 0:11:58.3] } 21. Bxf7 { [%clk 0:07:07.3] } 21... Qxc3+ { [%clk 0:10:54.9] } 22. Ke2 { [%clk 0:07:15.2] } 22... Qc4+ { [%clk 0:05:18.6] } 23. Ke1 { [%clk 0:06:47.3] } 23... Qc3+ { [%clk 0:04:37.1] } 1/2-1/2

[Event "Live Chess"]
[Site "Chess.com"]
[Date "2021.02.28"]
[Round "-"]
[White "Spencer, Edwin A"]
[Black "Olson, Hamish"]
[Result "0-1"]
[BlackElo "2138"]
[CurrentPosition "8/7p/5p2/3nkP2/1pp3P1/5K1P/4N3/8 w - -"]
[ECO "C45"]
[ECOUrl "https://www.chess.com/openings/Scotch-Game-Classical-Variation-5.Be3-Qf6-6.c3-Nge7"]
[EndDate "2021.02.28"]
[EndTime "15:08:09"]
[Link "https://www.chess.com/live/game/8259912867"]
[StartTime "14:04:56"]
[Termination "Hamish123456 won by resignation"]
[TimeControl "1500+10"]
[Timezone "UTC"]
[UTCDate "2021.02.28"]
[UTCTime "14:04:56"]
[WhiteElo "2038"]

1. e4 { [%clk 0:25:10] } 1... e5 { [%clk 0:25:10] } 2. Nf3 { [%clk 0:25:16.6] } 2... Nc6 { [%clk 0:25:07.5] } 3. d4 { [%clk 0:25:21.3] } 3... exd4 { [%clk 0:24:57.9] } 4. Nxd4 { [%clk 0:25:06.1] } 4... Bc5 { [%clk 0:25:02.6] } 5. Be3 { [%clk 0:24:55.9] } 5... Qf6 { [%clk 0:25:09.1] } 6. c3 { [%clk 0:25:03.6] } 6... Nge7 { [%clk 0:25:16.1] } 7. Bc4 { [%clk 0:24:45.8] } 7... O-O { [%clk 0:25:00.5] } 8. O-O { [%clk 0:24:47] } 8... b6 { [%clk 0:25:06.3] } 9. Nxc6 { [%clk 0:17:53.4] } 9... Qxc6 { [%clk 0:25:06.3] } 10. Bxc5 { [%clk 0:18:00.4] } 10... Qxc5 { [%clk 0:25:05.9] } 11. Nd2 { [%clk 0:18:06.9] } 11... d5 { [%clk 0:23:14.7] } 12. b4 { [%clk 0:17:35.2] } 12... Qc6 { [%clk 0:22:32.5] } 13. exd5 { [%clk 0:12:31] } 13... Nxd5 { [%clk 0:22:17.3] } 14. Qf3 { [%clk 0:12:36.2] } 14... Be6 { [%clk 0:18:56.7] } 15. Rac1 { [%clk 0:11:03.3] } 15... Rad8 { [%clk 0:18:00.7] } 16. Rfd1 { [%clk 0:11:03.9] } 16... Rfe8 { [%clk 0:15:06.6] } 17. h3 { [%clk 0:10:27.8] } 17... Ne7 { [%clk 0:12:59.4] } 18. Qxc6 { [%clk 0:07:44.6] } 18... Nxc6 { [%clk 0:13:09.3] } 19. Bb5 { [%clk 0:07:53.4] } 19... Bd7 { [%clk 0:09:35.5] } 20. Nc4 { [%clk 0:06:16] } 20... Nb8 { [%clk 0:09:25.6] } 21. Bxd7 { [%clk 0:06:01.3] } 21... Nxd7 { [%clk 0:09:16.3] } 22. Rd4 { [%clk 0:04:58.4] } 22... Nf6 { [%clk 0:07:57.3] } 23. Rcd1 { [%clk 0:03:29.5] } 23... Rxd4 { [%clk 0:07:47.5] } 24. Rxd4 { [%clk 0:03:39.4] } 24... Re1+ { [%clk 0:07:41.6] } 25. Kh2 { [%clk 0:03:47.2] } 25... Kf8 { [%clk 0:07:42.6] } 26. f4 { [%clk 0:03:42.5] } 26... Re4 { [%clk 0:07:02.3] } 27. Ne5 { [%clk 0:02:43.6] } 27... Rxd4 { [%clk 0:06:35] } 28. cxd4 { [%clk 0:02:53.5] } 28... Nd5 { [%clk 0:06:24.2] } 29. Nc6 { [%clk 0:03:01.1] } 29... a6 { [%clk 0:04:28.1] } 30. Kg3 { [%clk 0:03:04] } 30... Ke8 { [%clk 0:04:21.6] } 31. a3 { [%clk 0:03:09.8] } 31... Kd7 { [%clk 0:03:53.4] } 32. Nb8+ { [%clk 0:01:50.7] } 32... Kc8 { [%clk 0:03:57.3] } 33. Nxa6 { [%clk 0:01:58.3] } 33... Nc3 { [%clk 0:03:37.2] } 34. Kf3 { [%clk 0:01:19] } 34... Kb7 { [%clk 0:03:42.3] } 35. b5 { [%clk 0:01:26.7] } 35... Nxb5 { [%clk 0:03:44.6] } 36. Nb4 { [%clk 0:01:34.5] } 36... Nxd4+ { [%clk 0:03:43.8] } 37. Ke4 { [%clk 0:01:39.3] } 37... c5 { [%clk 0:03:42.7] } 38. Nd3 { [%clk 0:01:30.9] } 38... f6 { [%clk 0:03:10.7] } 39. a4 { [%clk 0:01:38.5] } 39... Kc6 { [%clk 0:03:17.8] } 40. f5 { [%clk 0:01:40.8] } 40... Ne2 { [%clk 0:03:06.5] } 41. g4 { [%clk 0:01:34.3] } 41... Nc3+ { [%clk 0:03:12.9] } 42. Ke3 { [%clk 0:01:35.5] } 42... Nxa4 { [%clk 0:03:16.8] } 43. Nf4 { [%clk 0:01:43.8] } 43... Kd6 { [%clk 0:02:49.1] } 44. Nh5 { [%clk 0:01:51.2] } 44... Ke5 { [%clk 0:02:52.1] } 45. Nxg7 { [%clk 0:01:54.5] } 45... b5 { [%clk 0:02:55.6] } 46. Nh5 { [%clk 0:01:20.2] } 46... b4 { [%clk 0:02:58.1] } 47. Nf4 { [%clk 0:01:27.3] } 47... c4 { [%clk 0:03:00.4] } 48. Ne2 { [%clk 0:01:28.4] } 48... Nb6 { [%clk 0:02:48.1] } 49. Kf3 { [%clk 0:00:52.4] } 49... Nd5 { [%clk 0:02:49.1] } 0-1

[Event "Live Chess"]
[Site "Chess.com"]
[Date "2021.02.28"]
[Round "-"]
[White "Gray, Euan"]
[Black "Gregory, Sam"]
[Result "0-1"]
[BlackElo "1991"]
[CurrentPosition "8/Q4ppk/1P2p2p/p7/4b3/6PP/5P2/2q3K1 w - -"]
[ECO "E48"]
[ECOUrl "https://www.chess.com/openings/Nimzo-Indian-Defense-Bishop-Attack-Classical-Defense-6.Nf3-c5-7.O-O"]
[EndDate "2021.02.28"]
[EndTime "15:06:45"]
[Link "https://www.chess.com/live/game/8259821333"]
[StartTime "13:59:05"]
[Termination "NiceCardigan won by resignation"]
[TimeControl "1500+10"]
[Timezone "UTC"]
[UTCDate "2021.02.28"]
[UTCTime "13:59:05"]
[WhiteElo "1851"]

1. d4 { [%clk 0:25:10] } 1... Nf6 { [%clk 0:25:10] } 2. c4 { [%clk 0:25:15.6] } 2... e6 { [%clk 0:25:17.2] } 3. Nc3 { [%clk 0:25:23.3] } 3... Bb4 { [%clk 0:25:25.7] } 4. e3 { [%clk 0:25:31.1] } 4... O-O { [%clk 0:25:33.9] } 5. Bd3 { [%clk 0:25:39.7] } 5... d5 { [%clk 0:25:42.4] } 6. Nf3 { [%clk 0:25:48.3] } 6... c5 { [%clk 0:25:49.8] } 7. O-O { [%clk 0:25:56.7] } 7... cxd4 { [%clk 0:25:52.8] } 8. exd4 { [%clk 0:26:03.8] } 8... dxc4 { [%clk 0:25:55.9] } 9. Bxc4 { [%clk 0:26:11.6] } 9... a6 { [%clk 0:26:01.1] } 10. Qe2 { [%clk 0:24:57.4] } 10... Be7 { [%clk 0:25:54.4] } 11. a4 { [%clk 0:23:30.2] } 11... Nc6 { [%clk 0:24:57.2] } 12. Rd1 { [%clk 0:23:37.6] } 12... Qc7 { [%clk 0:24:31.1] } 13. Bg5 { [%clk 0:23:06] } 13... h6 { [%clk 0:24:30.2] } 14. Bh4 { [%clk 0:23:05.3] } 14... Nb4 { [%clk 0:23:28.8] } 15. Rac1 { [%clk 0:22:52.7] } 15... Qd8 { [%clk 0:21:53] } 16. Ne5 { [%clk 0:21:33] } 16... Nfd5 { [%clk 0:19:28.9] } 17. Bg3 { [%clk 0:20:54.6] } 17... Bg5 { [%clk 0:19:00.4] } 18. Rb1 { [%clk 0:20:48.1] } 18... b6 { [%clk 0:18:12.8] } 19. Nf3 { [%clk 0:17:51] } 19... Bf6 { [%clk 0:17:20] } 20. Ne4 { [%clk 0:17:17.2] } 20... Bb7 { [%clk 0:16:08.6] } 21. Qd2 { [%clk 0:15:38] } 21... Be7 { [%clk 0:15:34.9] } 22. Rbc1 { [%clk 0:13:20.6] } 22... Rc8 { [%clk 0:14:45.9] } 23. h3 { [%clk 0:13:20.8] } 23... Qd7 { [%clk 0:13:45.1] } 24. Bb3 { [%clk 0:12:39.6] } 24... Rfd8 { [%clk 0:13:11.9] } 25. Ne5 { [%clk 0:11:36.9] } 25... Qe8 { [%clk 0:13:12.5] } 26. Qe2 { [%clk 0:11:01.9] } 26... Rxc1 { [%clk 0:10:12.1] } 27. Rxc1 { [%clk 0:11:08.7] } 27... Nc6 { [%clk 0:09:57.2] } 28. Nf3 { [%clk 0:10:36.4] } 28... Nf6 { [%clk 0:09:21.2] } 29. Nxf6+ { [%clk 0:07:37.9] } 29... Bxf6 { [%clk 0:09:31.1] } 30. Be5 { [%clk 0:07:43.3] } 30... Qe7 { [%clk 0:08:51.6] } 31. Bc4 { [%clk 0:07:22.7] } 31... Nb4 { [%clk 0:07:45.6] } 32. Qe3 { [%clk 0:06:24] } 32... Bd5 { [%clk 0:06:46.2] } 33. Be2 { [%clk 0:06:02.9] } 33... Nc6 { [%clk 0:05:36.4] } 34. Bxf6 { [%clk 0:05:01.1] } 34... Qxf6 { [%clk 0:05:38.7] } 35. Ne5 { [%clk 0:05:09.6] } 35... Nxd4 { [%clk 0:03:16.6] } 36. Qxd4 { [%clk 0:03:58.3] } 36... Qg5 { [%clk 0:03:17.6] } 37. Bf1 { [%clk 0:03:20] } 37... Qxc1 { [%clk 0:03:22.9] } 38. Qxb6 { [%clk 0:03:26.6] } 38... Ra8 { [%clk 0:02:43.3] } 39. Nd3 { [%clk 0:02:57.4] } 39... Qb1 { [%clk 0:01:54.1] } 40. Qd4 { [%clk 0:02:04.1] } 40... Rc8 { [%clk 0:01:34.2] } 41. Nc5 { [%clk 0:02:05.6] } 41... Qc1 { [%clk 0:01:21.7] } 42. b4 { [%clk 0:02:12.9] } 42... a5 { [%clk 0:01:26.4] } 43. Nd3 { [%clk 0:02:07.3] } 43... Qd1 { [%clk 0:01:17.7] } 44. Qb2 { [%clk 0:00:29.4] } 44... Bc4 { [%clk 0:00:43.6] } 45. Qc3 { [%clk 0:00:29.2] } 45... Bxd3 { [%clk 0:00:34.7] } 46. Qxc8+ { [%clk 0:00:25.4] } 46... Kh7 { [%clk 0:00:43.4] } 47. Kh2 { [%clk 0:00:34.3] } 47... Bxf1 { [%clk 0:00:36.2] } 48. b5 { [%clk 0:00:42.8] } 48... Qd6+ { [%clk 0:00:37.7] } 49. Kg1 { [%clk 0:00:49.8] } 49... Bd3 { [%clk 0:00:45.6] } 50. Qa8 { [%clk 0:00:51.5] } 50... Qb4 { [%clk 0:00:40.5] } 51. Qf3 { [%clk 0:00:58] } 51... Bg6 { [%clk 0:00:45.5] } 52. Qa8 { [%clk 0:00:53] } 52... Qxa4 { [%clk 0:00:50] } 53. b6 { [%clk 0:01:01.7] } 53... Be4 { [%clk 0:00:45.1] } 54. Qa7 { [%clk 0:00:54.2] } 54... Qa1+ { [%clk 0:00:48.9] } 55. Kh2 { [%clk 0:01:02] } 55... Qe5+ { [%clk 0:00:57.8] } 56. Kg1 { [%clk 0:01:07.8] } 56... Qg5 { [%clk 0:00:40.2] } 57. g3 { [%clk 0:01:07.7] } 57... Qc1+ { [%clk 0:00:47.7] } 0-1

[Event "Live Chess"]
[Site "Chess.com"]
[Date "2021.02.28"]
[Round "-"]
[White "Mooney, Graham"]
[Black "Lothian, Robert"]
[Result "0-1"]
[BlackElo "2051"]
[CurrentPosition "4r1k1/6pp/5p2/8/P7/7P/r4PP1/2R2K2 w - -"]
[ECO "B10"]
[ECOUrl "https://www.chess.com/openings/Caro-Kann-Defense-Two-Knights-Attack"]
[EndDate "2021.02.28"]
[EndTime "14:57:13"]
[Link "https://www.chess.com/live/game/8259888961"]
[StartTime "14:03:30"]
[Termination "StoneyShark won by resignation"]
[TimeControl "1500+10"]
[Timezone "UTC"]
[UTCDate "2021.02.28"]
[UTCTime "14:03:30"]
[WhiteElo "1831"]

1. e4 { [%clk 0:25:10] } 1... c6 { [%clk 0:25:10] } 2. Nf3 { [%clk 0:25:14.9] } 2... d5 { [%clk 0:25:15.8] } 3. Nc3 { [%clk 0:25:15.8] } 3... Bg4 { [%clk 0:25:20.2] } 4. exd5 { [%clk 0:24:46.1] } 4... cxd5 { [%clk 0:25:25.8] } 5. Bb5+ { [%clk 0:24:49.3] } 5... Nc6 { [%clk 0:22:29] } 6. h3 { [%clk 0:24:23.3] } 6... Bxf3 { [%clk 0:22:33] } 7. Qxf3 { [%clk 0:24:20.6] } 7... e6 { [%clk 0:22:10.9] } 8. O-O { [%clk 0:23:23.2] } 8... Nf6 { [%clk 0:21:58.3] } 9. Bxc6+ { [%clk 0:20:05.4] } 9... bxc6 { [%clk 0:22:04.2] } 10. a4 { [%clk 0:19:51.2] } 10... Be7 { [%clk 0:21:33] } 11. b3 { [%clk 0:18:38.9] } 11... O-O { [%clk 0:21:34.6] } 12. Bb2 { [%clk 0:18:10.7] } 12... e5 { [%clk 0:19:58.6] } 13. Qg3 { [%clk 0:15:31.9] } 13... Bd6 { [%clk 0:19:03.3] } 14. Ba3 { [%clk 0:15:27.2] } 14... Re8 { [%clk 0:14:15.4] } 15. Bxd6 { [%clk 0:13:09.3] } 15... Qxd6 { [%clk 0:14:22.1] } 16. d4 { [%clk 0:13:10.9] } 16... Nh5 { [%clk 0:13:27.1] } 17. Qg4 { [%clk 0:12:41.5] } 17... Nf4 { [%clk 0:10:58.6] } 18. dxe5 { [%clk 0:09:41.7] } 18... Qxe5 { [%clk 0:11:03.9] } 19. Qf3 { [%clk 0:09:48.8] } 19... Qxc3 { [%clk 0:09:59.7] } 20. Qxf4 { [%clk 0:09:54.6] } 20... Qxc2 { [%clk 0:10:05.6] } 21. Rfc1 { [%clk 0:09:12.2] } 21... Qxb3 { [%clk 0:09:10.7] } 22. Rxc6 { [%clk 0:09:17.3] } 22... Rad8 { [%clk 0:07:19.7] } 23. Rc7 { [%clk 0:09:18.4] } 23... d4 { [%clk 0:07:25.4] } 24. Rxa7 { [%clk 0:06:45] } 24... d3 { [%clk 0:06:45.8] } 25. Qd2 { [%clk 0:04:59.1] } 25... Qb6 { [%clk 0:05:45.7] } 26. Ra5 { [%clk 0:03:54.1] } 26... Re2 { [%clk 0:04:50.5] } 27. Qg5 { [%clk 0:03:59.9] } 27... f6 { [%clk 0:04:26.8] } 28. Qc5 { [%clk 0:03:47.8] } 28... Qxc5 { [%clk 0:03:42.9] } 29. Rxc5 { [%clk 0:03:54.6] } 29... d2 { [%clk 0:03:46.6] } 30. Kf1 { [%clk 0:04:02.4] } 30... Rde8 { [%clk 0:03:47.6] } 31. Rcc1 { [%clk 0:03:24.6] } 31... dxc1=Q+ { [%clk 0:03:47.6] } 32. Rxc1 { [%clk 0:03:31.1] } 32... Ra2 { [%clk 0:03:54.5] } 0-1

[Event "Live Chess"]
[Site "Chess.com"]
[Date "2021.02.28"]
[Round "-"]
[White "McDonald, Ian"]
[Black "Kynoch, Richard J P"]
[Result "1-0"]
[BlackElo "1891"]
[CurrentPosition "2kr1b2/3n1P2/2Q3N1/pp1p2p1/3q4/P1N1nPBK/1PP5/R6R b - -"]
[ECO "D00"]
[ECOUrl "https://www.chess.com/openings/Queens-Pawn-Opening-Chigorin-Variation-2...Nf6"]
[EndDate "2021.02.28"]
[EndTime "14:48:01"]
[Link "https://www.chess.com/live/game/8259906545"]
[StartTime "14:04:35"]
[Termination "puracat won by checkmate"]
[TimeControl "1500+10"]
[Timezone "UTC"]
[UTCDate "2021.02.28"]
[UTCTime "14:04:35"]
[WhiteElo "2031"]

1. d4 { [%clk 0:25:10] } 1... Nf6 { [%clk 0:25:10] } 2. Nc3 { [%clk 0:25:18.4] } 2... d5 { [%clk 0:25:10.8] } 3. Bf4 { [%clk 0:25:23.7] } 3... c6 { [%clk 0:24:04.5] } 4. e3 { [%clk 0:25:22.8] } 4... Bf5 { [%clk 0:22:43.4] } 5. f3 { [%clk 0:25:24.8] } 5... h6 { [%clk 0:21:24] } 6. g4 { [%clk 0:25:25.5] } 6... Bh7 { [%clk 0:20:26.8] } 7. h4 { [%clk 0:25:18.9] } 7... Nbd7 { [%clk 0:19:17.2] } 8. Bd3 { [%clk 0:25:19.1] } 8... Bxd3 { [%clk 0:18:23.8] } 9. Qxd3 { [%clk 0:25:02] } 9... e6 { [%clk 0:17:59.2] } 10. Nge2 { [%clk 0:25:00.7] } 10... Be7 { [%clk 0:17:02.1] } 11. Bg3 { [%clk 0:24:02.9] } 11... Qa5 { [%clk 0:16:08.9] } 12. a3 { [%clk 0:23:45.9] } 12... b5 { [%clk 0:15:34.1] } 13. Kf2 { [%clk 0:23:44.7] } 13... Qb6 { [%clk 0:14:36.3] } 14. Kg2 { [%clk 0:20:14.9] } 14... a5 { [%clk 0:11:48.6] } 15. Nf4 { [%clk 0:20:15] } 15... O-O-O { [%clk 0:09:56.7] } 16. g5 { [%clk 0:20:03.9] } 16... Ne8 { [%clk 0:08:28.1] } 17. g6 { [%clk 0:19:58.6] } 17... e5 { [%clk 0:07:32.7] } 18. dxe5 { [%clk 0:19:30.6] } 18... Nxe5 { [%clk 0:06:08.7] } 19. Qf5+ { [%clk 0:19:38.6] } 19... Nd7 { [%clk 0:06:13.9] } 20. gxf7 { [%clk 0:15:29] } 20... Nd6 { [%clk 0:05:31] } 21. Qe6 { [%clk 0:15:36.9] } 21... Bf8 { [%clk 0:04:25.6] } 22. Ng6 { [%clk 0:15:30.7] } 22... Nc4 { [%clk 0:02:00.1] } 23. Nxh8 { [%clk 0:14:51.6] } 23... Nxe3+ { [%clk 0:02:07] } 24. Kh3 { [%clk 0:15:00.4] } 24... g5 { [%clk 0:01:49.7] } 25. hxg5 { [%clk 0:13:58.5] } 25... hxg5 { [%clk 0:01:53.5] } 26. Ng6 { [%clk 0:13:59.5] } 26... Qd4 { [%clk 0:01:31] } 27. Qxc6# { [%clk 0:14:06.5] } 1-0